fUST/lending_fUST_20250314
["ID","MTS","AMOUNT","RATE_DAILY","PERIOD"]
[356143587,1741957644140,-20992.36183126,8.019e-05,2]
[356143590,1741957750104,-188.54423555,7.198e-05,2]
[356143591,1741957772097,-15.29604355,7.198e-05,2]
[356143592,1741957772120,-448.74745215,8.018e-05,2]
[356143593,1741957772142,-182.02592176,8.018e-05,2]
[356143594,1741957772165,-530.81207835,8.018e-05,2]
[356143595,1741957772188,-300.0,8.018e-05,2]
[356143596,1741957772210,-113242.30695181,8.019e-05,2]
[356143618,1741957831900,-522.7187813,7.244e-05,2]
[356143619,1741957831909,-300.0,8.018e-05,2]
[356143621,1741957831919,-69360.81053572,8.019e-05,2]
[356143623,1741957831930,-1701.368335,8.119e-05,2]
[356143625,1741957831940,-249.34330852,8.119e-05,2]
[356143627,1741957831950,-1133.7637503,8.15e-05,2]
[356143629,1741957831960,-155.5099414,8.15e-05,2]
[356143631,1741957831970,-500.0,8.193e-05,2]
[356143633,1741957831980,-585.82028959,8.193e-05,2]
[356143635,1741957831989,-438.39383387,8.193e-05,2]
[356143637,1741957832000,-500.0,8.193e-05,2]
[356143639,1741957832010,-500.0,8.193e-05,2]
[356143641,1741957832020,-500.0,8.193e-05,2]
[356143643,1741957832030,-500.0,8.193e-05,2]
[356143645,1741957832039,-500.0,8.193e-05,2]
[356143647,1741957832049,-500.0,8.193e-05,2]
[356143649,1741957832058,-500.0,8.193e-05,2]
[356143651,1741957832070,-500.0,8.193e-05,2]
[356143653,1741957832079,-500.0,8.193e-05,2]
[356143655,1741957832089,-500.0,8.193e-05,2]
[356143657,1741957832100,-500.0,8.193e-05,2]
[356143659,1741957832110,-500.0,8.193e-05,2]
[356143661,1741957832119,-500.0,8.193e-05,2]
[356143663,1741957832129,-500.0,8.193e-05,2]
[356143665,1741957832139,-172.58418572,8.193e-05,2]
[356143667,1741957832149,-500.0,8.193e-05,2]
[356143668,1741957832159,-500.48076945,8.193e-05,2]
[356143670,1741957832168,-500.0,8.193e-05,2]
[356143672,1741957832178,-500.0,8.193e-05,2]
[356143674,1741957832187,-500.0,8.193e-05,2]
[356143676,1741957832197,-310.9728402,8.2e-05,2]
[356143678,1741957832206,-300.0,8.21e-05,2]
[356143680,1741957832216,-353.0,8.21e-05,2]
[356143682,1741957832226,-353.0,8.21e-05,2]
[356143684,1741957832237,-353.0,8.21e-05,2]
[356143685,1741957832246,-353.0,8.21e-05,2]
[356143686,1741957832256,-353.0,8.21e-05,2]
[356143687,1741957832265,-353.0,8.21e-05,2]
[356143688,1741957832275,-353.0,8.21e-05,2]
[356143689,1741957832284,-353.0,8.21e-05,2]
[356143690,1741957832294,-377.80088301,8.21e-05,2]
[356143691,1741957832303,-353.0,8.21e-05,2]
[356143692,1741957832314,-159.2867764,8.21e-05,2]
[356143693,1741957832323,-782.39751181,8.218e-05,2]
[356143694,1741957832333,-500.0,8.219e-05,2]
[356143695,1741957832343,-500.0,8.219e-05,2]
[356143696,1741957832353,-500.0,8.219e-05,2]
[356143697,1741957832363,-501.83735093,8.219e-05,2]
[356143698,1741957832373,-500.0,8.219e-05,2]
[356143699,1741957832383,-500.0,8.219e-05,2]
[356143700,1741957832393,-637.46807552,8.219e-05,2]
[356143701,1741957832402,-500.0,8.219e-05,2]
[356143702,1741957832412,-501.18799308,8.219e-05,2]
[356143703,1741957832422,-501.0765628,8.219e-05,2]
[356143704,1741957832432,-505.88199776,8.219e-05,2]
[356143705,1741957832441,-500.0,8.219e-05,2]
[356143706,1741957832451,-500.0,8.219e-05,2]
[356143707,1741957832460,-500.0,8.219e-05,2]
[356143708,1741957832470,-500.0,8.219e-05,2]
[356143709,1741957832481,-500.0,8.219e-05,2]
[356143710,1741957832492,-500.0,8.219e-05,2]
[356143711,1741957832502,-500.0,8.219e-05,2]
[356143712,1741957832512,-500.0,8.219e-05,2]
[356143713,1741957832522,-500.0,8.219e-05,2]
[356143714,1741957832531,-500.0,8.219e-05,2]
[356143715,1741957832545,-500.0,8.219e-05,2]
[356143716,1741957832554,-500.0,8.219e-05,2]
[356143717,1741957832563,-535.45800347,8.219e-05,2]
[356143718,1741957832575,-500.0,8.219e-05,2]
[356143719,1741957832586,-500.0,8.219e-05,2]
[356143720,1741957832595,-500.0,8.219e-05,2]
[356143721,1741957832605,-500.0,8.219e-05,2]
[356143722,1741957832616,-500.0,8.219e-05,2]
[356143723,1741957832626,-658.03,8.219e-05,2]
[356143724,1741957832636,-500.0,8.219e-05,2]
[356143725,1741957832645,-500.0,8.219e-05,2]
[356143726,1741957832654,-569.27639936,8.219e-05,2]
[356143727,1741957832663,-500.0,8.219e-05,2]
[356143728,1741957832672,-500.0,8.219e-05,2]
[356143729,1741957832681,-510.20419658,8.219e-05,2]
[356143730,1741957832691,-610.47,8.219e-05,2]
[356143731,1741957832702,-480.71111494,8.219e-05,2]
[356143732,1741957832714,-500.0,8.219e-05,2]
[356143733,1741957832725,-500.0,8.219e-05,2]
[356143734,1741957832735,-500.0,8.219e-05,2]
[356143735,1741957832744,-500.0,8.219e-05,2]
[356143736,1741957832756,-500.0,8.219e-05,2]
[356143737,1741957832766,-500.0,8.219e-05,2]
[356143738,1741957832776,-505.54,8.219e-05,2]
[356143739,1741957832785,-500.0,8.219e-05,2]
[356143740,1741957832794,-264.42386796,8.219e-05,2]
[356143741,1741957832803,-517.68445038,8.219e-05,2]
[356143742,1741957832812,-500.0,8.219e-05,2]
[356143743,1741957832821,-500.0,8.219e-05,2]
[356143744,1741957832831,-503.39859099,8.219e-05,2]
[356143745,1741957832840,-500.0,8.219e-05,2]
[356143746,1741957832849,-500.0,8.219e-05,2]
[356143747,1741957832859,-500.0,8.219e-05,2]
[356143748,1741957832869,-500.0,8.219e-05,2]
[356143749,1741957832878,-500.0,8.219e-05,2]
[356143750,1741957832887,-516.72968295,8.219e-05,2]
[356143751,1741957832897,-500.0,8.219e-05,2]
[356143752,1741957832906,-534.86833064,8.219e-05,2]
[356143753,1741957832915,-623.44,8.219e-05,2]
[356143754,1741957832926,-500.0,8.219e-05,2]
[356143755,1741957832935,-500.0,8.219e-05,2]
[356143756,1741957832945,-500.0,8.219e-05,2]
[356143757,1741957832954,-500.0,8.219e-05,2]
[356143758,1741957832965,-500.0,8.219e-05,2]
[356143759,1741957832975,-500.0,8.219e-05,2]
[356143760,1741957832985,-515.09243624,8.219e-05,2]
[356143761,1741957832995,-500.0,8.219e-05,2]
[356143762,1741957833005,-500.0,8.219e-05,2]
[356143763,1741957833015,-500.0,8.219e-05,2]
[356143764,1741957833025,-573.36,8.219e-05,2]
[356143765,1741957833034,-500.0,8.219e-05,2]
[356143766,1741957833043,-500.0,8.219e-05,2]
[356143767,1741957833053,-500.0,8.219e-05,2]
[356143768,1741957833064,-724.32,8.219e-05,2]
[356143769,1741957833074,-500.0,8.219e-05,2]
[356143770,1741957833083,-500.0,8.219e-05,2]
[356143771,1741957833096,-532.97285405,8.219e-05,2]
[356143772,1741957833106,-500.0,8.219e-05,2]
[356143773,1741957833116,-500.0,8.219e-05,2]
[356143774,1741957833127,-500.0,8.219e-05,2]
[356143775,1741957833137,-500.0,8.219e-05,2]
[356143776,1741957833147,-500.0,8.219e-05,2]
[356143777,1741957833157,-500.0,8.219e-05,2]
[356143778,1741957833167,-500.0,8.219e-05,2]
[356143779,1741957833177,-500.0,8.219e-05,2]
[356143780,1741957833187,-500.0,8.219e-05,2]
[356143781,1741957833198,-500.0,8.219e-05,2]
[356143782,1741957833207,-500.0,8.219e-05,2]
[356143783,1741957833217,-500.0,8.219e-05,2]
[356143784,1741957833226,-500.0,8.219e-05,2]
[356143785,1741957833236,-506.19626422,8.219e-05,2]
[356143786,1741957833246,-500.0,8.219e-05,2]
[356143787,1741957833257,-500.0,8.219e-05,2]
[356143788,1741957833268,-500.0,8.219e-05,2]
[356143789,1741957833281,-500.0,8.219e-05,2]
[356143790,1741957833293,-564.23,8.219e-05,2]
[356143791,1741957833303,-500.0,8.219e-05,2]
[356143792,1741957833313,-500.0,8.219e-05,2]
[356143793,1741957833323,-500.0,8.219e-05,2]
[356143794,1741957833333,-866.53,8.219e-05,2]
[356143795,1741957833343,-500.0,8.219e-05,2]
[356143796,1741957833353,-501.63,8.219e-05,2]
[356143797,1741957833363,-500.0,8.219e-05,2]
[356143798,1741957833373,-500.0,8.219e-05,2]
[356143799,1741957833383,-700.32,8.219e-05,2]
[356143800,1741957833393,-500.0,8.219e-05,2]
[356143801,1741957833403,-500.0,8.219e-05,2]
[356143802,1741957833413,-500.0,8.219e-05,2]
[356143803,1741957833423,-500.0,8.219e-05,2]
[356143804,1741957833433,-500.0,8.219e-05,2]
[356143805,1741957833443,-771.06,8.219e-05,2]
[356143806,1741957833452,-500.0,8.219e-05,2]
[356143807,1741957833463,-500.0,8.219e-05,2]
[356143808,1741957833473,-500.0,8.219e-05,2]
[356143809,1741957833482,-500.0,8.219e-05,2]
[356143810,1741957833492,-500.0,8.219e-05,2]
[356143811,1741957833502,-500.0,8.219e-05,2]
[356143812,1741957833512,-500.0,8.219e-05,2]
[356143813,1741957833521,-1491.98,8.219e-05,2]
[356143814,1741957833532,-759.21,8.219e-05,2]
[356143815,1741957833544,-713.27,8.219e-05,2]
[356143816,1741957833553,-500.0,8.219e-05,2]
[356143817,1741957833563,-500.0,8.219e-05,2]
[356143818,1741957833572,-500.0,8.219e-05,2]
[356143819,1741957833583,-500.0,8.219e-05,2]
[356143820,1741957833592,-513.01867004,8.219e-05,2]
[356143821,1741957833602,-500.0,8.219e-05,2]
[356143822,1741957833612,-500.0,8.219e-05,2]
[356143823,1741957833623,-700.6,8.219e-05,2]
[356143824,1741957833634,-500.0,8.219e-05,2]
[356143825,1741957833645,-500.0,8.219e-05,2]
[356143826,1741957833656,-667.81,8.219e-05,2]
[356143827,1741957833666,-1336.7,8.219e-05,2]
[356143828,1741957833676,-500.0,8.219e-05,2]
[356143829,1741957833687,-1003.89,8.219e-05,2]
[356143830,1741957833696,-551.39,8.219e-05,2]
[356143831,1741957833706,-500.0,8.219e-05,2]
[356143832,1741957833716,-500.0,8.219e-05,2]
[356143833,1741957833727,-822.88,8.219e-05,2]
[356143834,1741957833736,-1447.91,8.219e-05,2]
[356143835,1741957833745,-500.0,8.219e-05,2]
[356143836,1741957833755,-500.0,8.219e-05,2]
[356143837,1741957833765,-121.78091091,8.219e-05,2]
[356143838,1741957833788,-378.21908909,8.219e-05,2]
[356143839,1741957833799,-500.0,8.219e-05,2]
[356143840,1741957833809,-500.0,8.219e-05,2]
[356143841,1741957833819,-1309.63,8.219e-05,2]
[356143842,1741957833828,-500.0,8.219e-05,2]
[356143843,1741957833838,-500.0,8.219e-05,2]
[356143844,1741957833848,-500.0,8.219e-05,2]
[356143845,1741957833860,-500.0,8.219e-05,2]
[356143846,1741957833870,-500.0,8.219e-05,2]
[356143847,1741957833880,-500.0,8.219e-05,2]
[356143848,1741957833892,-500.0,8.219e-05,2]
[356143849,1741957833903,-500.0,8.219e-05,2]
[356143850,1741957833913,-501.92135269,8.219e-05,2]
[356143851,1741957833923,-500.0,8.219e-05,2]
[356143852,1741957833933,-500.0,8.219e-05,2]
[356143853,1741957833942,-516.80278885,8.219e-05,2]
[356143854,1741957833952,-500.0,8.219e-05,2]
[356143855,1741957833961,-500.0,8.219e-05,2]
[356143856,1741957833972,-704.43,8.219e-05,2]
[356143857,1741957833982,-500.0,8.219e-05,2]
[356143858,1741957833992,-500.0,8.219e-05,2]
[356143859,1741957834003,-622.49,8.219e-05,2]
[356143860,1741957834012,-500.0,8.219e-05,2]
[356143861,1741957834022,-500.0,8.219e-05,2]
[356143862,1741957834031,-500.0,8.219e-05,2]
[356143863,1741957834041,-500.0,8.219e-05,2]
[356143864,1741957834050,-506.86519217,8.219e-05,2]
[356143865,1741957834060,-500.0,8.219e-05,2]
[356143866,1741957834070,-500.0,8.219e-05,2]
[356143867,1741957834079,-500.0,8.219e-05,2]
[356143868,1741957834088,-607.34,8.219e-05,2]
[356143869,1741957834099,-500.0,8.219e-05,2]
[356143870,1741957834109,-500.0,8.219e-05,2]
[356143871,1741957834119,-728.68,8.219e-05,2]
[356143872,1741957834128,-500.0,8.219e-05,2]
[356143873,1741957834138,-500.0,8.219e-05,2]
[356143874,1741957834148,-500.0,8.219e-05,2]
[356143875,1741957834158,-500.0,8.219e-05,2]
[356143876,1741957834168,-521.62611794,8.219e-05,2]
[356143877,1741957834177,-753.37,8.219e-05,2]
[356143878,1741957834187,-500.0,8.219e-05,2]
[356143879,1741957834198,-500.0,8.219e-05,2]
[356143880,1741957834208,-500.0,8.219e-05,2]
[356143881,1741957834217,-760.32,8.219e-05,2]
[356143882,1741957834228,-500.0,8.219e-05,2]
[356143883,1741957834238,-500.0,8.219e-05,2]
[356143884,1741957834248,-434.46138596,8.219e-05,2]
[356143885,1741957834258,-500.0,8.219e-05,2]
[356143886,1741957834268,-500.0,8.219e-05,2]
[356143887,1741957834278,-500.0,8.219e-05,2]
[356143888,1741957834289,-579.41,8.219e-05,2]
[356143889,1741957834299,-500.0,8.219e-05,2]
[356143890,1741957834310,-500.0,8.219e-05,2]
[356143891,1741957834320,-672.73,8.219e-05,2]
[356143892,1741957834329,-500.0,8.219e-05,2]
[356143893,1741957834339,-500.0,8.219e-05,2]
[356143894,1741957834349,-500.0,8.219e-05,2]
[356143895,1741957834360,-500.0,8.219e-05,2]
[356143896,1741957834370,-500.0,8.219e-05,2]
[356143897,1741957834380,-500.0,8.219e-05,2]
[356143898,1741957834390,-500.0,8.219e-05,2]
[356143899,1741957834400,-500.0,8.219e-05,2]
[356143900,1741957834410,-500.0,8.219e-05,2]
[356143901,1741957834419,-500.0,8.219e-05,2]
[356143902,1741957834429,-500.0,8.219e-05,2]
[356143903,1741957834439,-500.0,8.219e-05,2]
[356143904,1741957834449,-1408.09,8.219e-05,2]
[356143905,1741957834459,-501.6989479,8.219e-05,2]
[356143906,1741957834470,-500.0,8.219e-05,2]
[356143907,1741957834480,-500.0,8.219e-05,2]
[356143908,1741957834490,-500.0,8.219e-05,2]
[356143909,1741957834501,-506.89695864,8.219e-05,2]
[356143910,1741957834510,-500.0,8.219e-05,2]
[356143911,1741957834520,-500.0,8.219e-05,2]
[356143912,1741957834530,-500.0,8.219e-05,2]
[356143913,1741957834542,-810.11,8.219e-05,2]
[356143914,1741957834551,-500.0,8.219e-05,2]
[356143915,1741957834561,-500.0,8.219e-05,2]
[356143916,1741957834571,-500.0,8.219e-05,2]
[356143917,1741957834581,-500.0,8.219e-05,2]
[356143918,1741957834591,-500.0,8.219e-05,2]
[356143919,1741957834601,-500.0,8.219e-05,2]
[356143920,1741957834612,-500.0,8.219e-05,2]
[356143921,1741957834623,-1447.94,8.219e-05,2]
[356143922,1741957834632,-500.0,8.219e-05,2]
[356143923,1741957834641,-1059.59,8.219e-05,2]
[356143924,1741957834651,-645.13,8.219e-05,2]
[356143925,1741957834871,-500.0,8.219e-05,2]
[356143926,1741957834882,-500.0,8.219e-05,2]
[356143927,1741957834892,-500.0,8.219e-05,2]
[356143928,1741957834903,-1031.01,8.219e-05,2]
[356143929,1741957834914,-369.23038187,8.219e-05,2]
[356143930,1741957834925,-524.24366921,8.219e-05,2]
[356143931,1741957834934,-500.0,8.219e-05,2]
[356143932,1741957834944,-239.9722308,8.219e-05,2]
[356143933,1741957834955,-500.0,8.219e-05,2]
[356143934,1741957834966,-729.09,8.219e-05,2]
[356143935,1741957834976,-500.0,8.219e-05,2]
[356143936,1741957834986,-500.0,8.219e-05,2]
[356143937,1741957834996,-1048.23,8.219e-05,2]
[356143938,1741957835006,-500.0,8.219e-05,2]
[356143939,1741957835016,-500.0,8.219e-05,2]
[356143940,1741957835025,-500.0,8.219e-05,2]
[356143941,1741957835036,-500.0,8.219e-05,2]
[356143942,1741957835046,-663.79,8.219e-05,2]
[356143943,1741957835056,-500.0,8.219e-05,2]
[356143944,1741957835066,-500.0,8.219e-05,2]
[356143945,1741957835075,-2124.45,8.219e-05,2]
[356143946,1741957835085,-226.56680464,8.219e-05,2]
[356143947,1741957835114,-273.43319536,8.219e-05,2]
[356143948,1741957835125,-500.0,8.219e-05,2]
[356143949,1741957835135,-503.53343167,8.219e-05,2]
[356143950,1741957835145,-500.0,8.219e-05,2]
[356143951,1741957835154,-500.0,8.219e-05,2]
[356143952,1741957835164,-9481.66,8.219e-05,2]
[356143953,1741957835174,-500.0,8.219e-05,2]
[356143954,1741957835184,-500.0,8.219e-05,2]
[356143955,1741957835194,-500.0,8.219e-05,2]
[356143956,1741957835203,-500.0,8.219e-05,2]
[356143957,1741957835213,-500.0,8.219e-05,2]
[356143958,1741957835223,-500.0,8.219e-05,2]
[356143959,1741957835232,-500.0,8.219e-05,2]
[356143960,1741957835241,-500.0,8.219e-05,2]
[356143961,1741957835251,-518.64594646,8.219e-05,2]
[356143962,1741957835260,-500.0,8.219e-05,2]
[356143963,1741957835270,-500.0,8.219e-05,2]
[356143964,1741957835279,-1326.89,8.219e-05,2]
[356143965,1741957835288,-500.0,8.219e-05,2]
[356143966,1741957835298,-500.0,8.219e-05,2]
[356143967,1741957835308,-500.0,8.219e-05,2]
[356143968,1741957835318,-500.0,8.219e-05,2]
[356143969,1741957835328,-500.0,8.219e-05,2]
[356143970,1741957835337,-500.0,8.219e-05,2]
[356143971,1741957835347,-568.91,8.219e-05,2]
[356143972,1741957835357,-500.0,8.219e-05,2]
[356143973,1741957835367,-500.0,8.219e-05,2]
[356143974,1741957835377,-500.0,8.219e-05,2]
[356143975,1741957835386,-500.0,8.219e-05,2]
[356143976,1741957835396,-500.0,8.219e-05,2]
[356143977,1741957835406,-500.0,8.219e-05,2]
[356143978,1741957835416,-19552.31,8.219e-05,2]
[356143979,1741957835426,-500.0,8.219e-05,2]
[356143980,1741957835435,-500.0,8.219e-05,2]
[356143981,1741957835445,-610.34917455,8.219e-05,2]
[356143982,1741957835455,-500.0,8.219e-05,2]
[356143983,1741957835464,-532.17716736,8.219e-05,2]
[356143984,1741957835474,-652.3,8.219e-05,2]
[356143985,1741957835484,-588.12,8.219e-05,2]
[356143986,1741957835494,-4239.39,8.219e-05,2]
[356143987,1741957835504,-673.93,8.219e-05,2]
[356143988,1741957835514,-500.0,8.219e-05,2]
[356143989,1741957835525,-500.0,8.219e-05,2]
[356143990,1741957835535,-1351.18,8.219e-05,2]
[356143991,1741957835547,-4816.22,8.219e-05,2]
[356143992,1741957835557,-953.98,8.219e-05,2]
[356143993,1741957835567,-500.0,8.219e-05,2]
[356143994,1741957835576,-860.87,8.219e-05,2]
[356143995,1741957835587,-500.0,8.219e-05,2]
[356143996,1741957835597,-500.0,8.219e-05,2]
[356143997,1741957835607,-500.0,8.219e-05,2]
[356143998,1741957835617,-998.33,8.219e-05,2]
[356143999,1741957835626,-500.0,8.219e-05,2]
[356144000,1741957835636,-500.0,8.219e-05,2]
[356144001,1741957835645,-500.0,8.219e-05,2]
[356144002,1741957835654,-500.0,8.219e-05,2]
[356144003,1741957835664,-500.0,8.219e-05,2]
[356144004,1741957835673,-1199.78,8.219e-05,2]
[356144005,1741957835682,-518.42,8.219e-05,2]
[356144006,1741957835691,-500.0,8.219e-05,2]
[356144007,1741957835701,-745.02,8.219e-05,2]
[356144008,1741957835710,-500.0,8.219e-05,2]
[356144009,1741957835720,-29311.67,8.219e-05,2]
[356144010,1741957835729,-2118.02,8.219e-05,2]
[356144011,1741957835738,-500.0,8.219e-05,2]
[356144012,1741957835747,-500.0,8.219e-05,2]
[356144013,1741957835756,-500.0,8.219e-05,2]
[356144014,1741957835766,-500.0,8.219e-05,2]
[356144015,1741957835775,-241709.3,8.219e-05,2]
[356144016,1741957835784,-500.0,8.219e-05,2]
[356144017,1741957835794,-500.0,8.219e-05,2]
[356144018,1741957835804,-500.0,8.219e-05,2]
[356144019,1741957835814,-724.73,8.219e-05,2]
[356144020,1741957835823,-873.44,8.219e-05,2]
[356144021,1741957835833,-500.0,8.219e-05,2]
[356144022,1741957835842,-500.0,8.219e-05,2]
[356144023,1741957835852,-5690.45,8.219e-05,2]
[356144024,1741957835861,-500.0,8.219e-05,2]
[356144025,1741957835871,-1669.81,8.219e-05,2]
[356144026,1741957835880,-8151.23,8.219e-05,2]
[356144027,1741957835890,-500.0,8.219e-05,2]
[356144028,1741957835900,-500.0,8.219e-05,2]
[356144029,1741957835909,-542.02,8.219e-05,2]
[356144030,1741957835919,-500.0,8.219e-05,2]
[356144031,1741957835928,-1029.92,8.219e-05,2]
[356144032,1741957835939,-500.0,8.219e-05,2]
[356144033,1741957835948,-1108.05,8.219e-05,2]
[356144034,1741957835958,-500.0,8.219e-05,2]
[356144035,1741957835968,-659.78,8.219e-05,2]
[356144036,1741957835978,-500.0,8.219e-05,2]
[356144037,1741957835988,-500.0,8.219e-05,2]
[356144038,1741957835998,-6500.23,8.219e-05,2]
[356144039,1741957836009,-500.0,8.219e-05,2]
[356144040,1741957836019,-1144.77,8.219e-05,2]
[356144041,1741957836029,-500.0,8.219e-05,2]
[356144042,1741957836038,-500.0,8.219e-05,2]
[356144043,1741957836048,-500.0,8.219e-05,2]
[356144044,1741957836058,-500.0,8.219e-05,2]
[356144045,1741957836067,-14382.12,8.219e-05,2]
[356144046,1741957836077,-703.36,8.219e-05,2]
[356144047,1741957836086,-3548.01,8.219e-05,2]
[356144048,1741957836096,-633.96,8.219e-05,2]
[356144049,1741957836106,-1433.9,8.219e-05,2]
[356144050,1741957836116,-500.0,8.219e-05,2]
[356144051,1741957836126,-795.98,8.219e-05,2]
[356144052,1741957836135,-500.0,8.219e-05,2]
[356144053,1741957836145,-500.0,8.219e-05,2]
[356144054,1741957836155,-500.0,8.219e-05,2]
[356144055,1741957836164,-500.0,8.219e-05,2]
[356144056,1741957836174,-6660.42,8.219e-05,2]
[356144057,1741957836184,-653.65,8.219e-05,2]
[356144058,1741957836193,-17424.84,8.219e-05,2]
[356144059,1741957836203,-500.0,8.219e-05,2]
[356144060,1741957836213,-3372.49,8.219e-05,2]
[356144061,1741957836224,-500.0,8.219e-05,2]
[356144062,1741957836234,-5653.85,8.219e-05,2]
[356144063,1741957836243,-500.0,8.219e-05,2]
[356144064,1741957836252,-4095.68,8.219e-05,2]
[356144065,1741957836262,-899.34,8.219e-05,2]
[356144066,1741957836272,-734.02,8.219e-05,2]
[356144067,1741957836281,-500.0,8.219e-05,2]
[356144068,1741957836292,-1496.53,8.219e-05,2]
[356144069,1741957836301,-500.0,8.219e-05,2]
[356144070,1741957836311,-522.88,8.219e-05,2]
[356144071,1741957836322,-760.8,8.219e-05,2]
[356144072,1741957836332,-500.0,8.219e-05,2]
[356144073,1741957836343,-500.0,8.219e-05,2]
[356144074,1741957836353,-500.0,8.219e-05,2]
[356144075,1741957836363,-500.0,8.219e-05,2]
[356144076,1741957836373,-500.0,8.219e-05,2]
[356144077,1741957836384,-904.21,8.219e-05,2]
[356144078,1741957836393,-595.17,8.219e-05,2]
[356144079,1741957836404,-516.82376165,8.219e-05,2]
[356144080,1741957836414,-500.0,8.219e-05,2]
[356144081,1741957836424,-500.0,8.219e-05,2]
[356144082,1741957836434,-2518.21,8.219e-05,2]
[356144083,1741957836444,-5228.82,8.219e-05,2]
[356144084,1741957836454,-500.0,8.219e-05,2]
[356144085,1741957836465,-500.0,8.219e-05,2]
[356144086,1741957836477,-425.48479524,8.219e-05,2]
[356144087,1741957836487,-500.0,8.219e-05,2]
[356144088,1741957836497,-510.04021247,8.219e-05,2]
[356144089,1741957836507,-500.0,8.219e-05,2]
[356144090,1741957836517,-500.0,8.219e-05,2]
[356144091,1741957836526,-876.89,8.219e-05,2]
[356144092,1741957836538,-500.0,8.219e-05,2]
[356144093,1741957836549,-500.0,8.219e-05,2]
[356144094,1741957836559,-500.0,8.219e-05,2]
[356144095,1741957836569,-500.0,8.219e-05,2]
[356144096,1741957836580,-1349.19,8.219e-05,2]
[356144097,1741957836589,-2680.35,8.219e-05,2]
[356144098,1741957836599,-500.0,8.219e-05,2]
[356144099,1741957836609,-500.0,8.219e-05,2]
[356144100,1741957836621,-500.0,8.219e-05,2]
[356144101,1741957836631,-3900.01,8.219e-05,2]
[356144102,1741957836641,-500.0,8.219e-05,2]
[356144103,1741957836650,-545.11,8.219e-05,2]
[356144104,1741957836661,-500.0,8.219e-05,2]
[356144105,1741957836671,-20975.35,8.219e-05,2]
[356144106,1741957836681,-500.0,8.219e-05,2]
[356144107,1741957836692,-3192.84,8.219e-05,2]
[356144108,1741957836702,-500.0,8.219e-05,2]
[356144109,1741957836713,-500.0,8.219e-05,2]
[356144110,1741957836725,-200.10953875,8.219e-05,2]
[356144111,1741957836734,-500.0,8.219e-05,2]
[356144112,1741957836743,-325.76660552,8.219e-05,2]
[356144113,1741957836753,-598.44,8.219e-05,2]
[356144114,1741957836763,-500.0,8.219e-05,2]
[356144115,1741957836773,-21546.16,8.219e-05,2]
[356144116,1741957836783,-552.36,8.219e-05,2]
[356144117,1741957836792,-500.0,8.219e-05,2]
[356144118,1741957836802,-500.0,8.219e-05,2]
[356144119,1741957836812,-500.0,8.219e-05,2]
[356144120,1741957836822,-500.0,8.219e-05,2]
[356144121,1741957836832,-353.0,8.219e-05,2]
[356144122,1741957836842,-353.0,8.219e-05,2]
[356144123,1741957836851,-500.0,8.219e-05,2]
[356144124,1741957836861,-500.0,8.219e-05,2]
[356144125,1741957836870,-353.0,8.219e-05,2]
[356144126,1741957836880,-3300.4,8.219e-05,2]
[356144127,1741957836890,-3300.4,8.219e-05,2]
[356144128,1741957836900,-513.66963539,8.219e-05,2]
[356144129,1741957836909,-3300.4,8.219e-05,2]
[356144130,1741957836919,-3300.4,8.219e-05,2]
[356144131,1741957836929,-3300.4,8.219e-05,2]
[356144132,1741957836939,-3300.4,8.219e-05,2]
[356144133,1741957836950,-500.0,8.219e-05,2]
[356144134,1741957836960,-3300.4,8.219e-05,2]
[356144135,1741957836970,-3300.4,8.219e-05,2]
[356144136,1741957836980,-3300.4,8.219e-05,2]
[356144137,1741957836991,-3300.4,8.219e-05,2]
[356144138,1741957837000,-155.5099414,8.22e-05,2]
[356144139,1741957837010,-1121.4089651,8.22e-05,2]
[356144140,1741957837019,-500.0,8.493e-05,2]
[356144141,1741957837028,-500.0,8.493e-05,2]